[Event "SS Manhem Chess Week 2019 Goteborg Open"]
[Site "Molnlycke kulturhus, Biblioteksgatan 2, Molnlycke, Sweden"]
[Date "2019.08.18"]
[Round "8.6"]
[White "Kockum, Anton Frisk"]
[Black "Castrillon Gomez, Melissa"]
[Result "1-0"]
[TimeControl "15 minutes + 5 seconds per move from move one (Round 1 - 4) / 90 minutes + 30 seconds per move from move one (Round 5 - 8)"]
[WhiteTitle "FM"]
[BlackTitle "WIM"]
[WhiteFideId "1709143"]
[BlackFideId "4402413"]
[WhiteElo "2367"]
[BlackElo "2227"]

1. d4 {[%clk 01:30:57]} Nf6 {[%clk 01:29:24]} {[%emt 00:01:37]} 2. Nf3 {[%clk
01:31:20]} {[%emt 00:00:06]} d5 {[%clk 01:29:44]} {[%emt 00:00:11]} 3. c4
{[%clk 01:31:44]} {[%emt 00:00:06]} e6 {[%clk 01:30:05]} {[%emt 00:00:09]} 4.
Nc3 {[%clk 01:32:07]} {[%emt 00:00:06]} c5 {[%clk 01:30:09]} {[%emt 00:00:26]}
5. cxd5 {[%clk 01:30:07]} {[%emt 00:02:29]} cxd4 {[%clk 01:27:21]} {[%emt
00:03:19]} 6. Qxd4 {[%clk 01:23:55]} {[%emt 00:06:43]} exd5 {[%clk 01:26:22]}
{[%emt 00:01:29]} 7. Bg5 {[%clk 01:18:44]} {[%emt 00:05:40]} Be7 {[%clk
01:25:32]} {[%emt 00:01:20]} 8. e3 {[%clk 01:17:30]} {[%emt 00:01:44]} h6
{[%clk 01:20:24]} {[%emt 00:05:38]} 9. Bh4 {[%clk 01:16:17]} {[%emt 00:01:42]}
Be6 {[%clk 01:14:52]} {[%emt 00:06:03]} 10. Bb5+ {[%clk 01:15:22]} {[%emt
00:01:25]} Kf8 {[%clk 01:10:51]} {[%emt 00:04:31]} 11. O-O {[%clk 01:12:03]}
{[%emt 00:03:49]} Nc6 {[%clk 01:06:32]} {[%emt 00:04:50]} 12. Bxc6 {[%clk
01:09:20]} {[%emt 00:03:13]} bxc6 {[%clk 01:06:57]} {[%emt 00:00:05]} 13. Na4
{[%clk 01:09:13]} {[%emt 00:00:37]} Qa5 {[%clk 00:55:32]} {[%emt 00:11:55]} 14.
Rfc1 {[%clk 01:07:04]} {[%emt 00:02:38]} Rc8 {[%clk 00:54:57]} {[%emt
00:01:07]} 15. Nc5 {[%clk 01:06:05]} {[%emt 00:01:28]} Qb6 {[%clk 00:53:49]}
{[%emt 00:01:38]} 16. Nxe6+ {[%clk 00:55:35]} {[%emt 00:11:43]} fxe6 {[%clk
00:54:15]} 17. Ne5 {[%clk 00:55:27]} Ke8 {[%clk 00:40:28]} {[%emt 00:14:16]} 18.
Qd3 {[%clk 00:45:40]} {[%emt 00:10:17]} g5 {[%clk 00:29:58]} {[%emt 00:11:01]}
19. Qg6+ {[%clk 00:45:13]} {[%emt 00:00:56]} Kd8 {[%clk 00:30:25]} {[%emt
00:00:04]} 20. Nf7+ {[%clk 00:38:16]} {[%emt 00:07:27]} Kd7 {[%clk 00:30:36]}
{[%emt 00:00:19]} 21. Nxh8 {[%clk 00:38:23]} {[%emt 00:00:23]} Rxh8 {[%clk
00:20:41]} {[%emt 00:10:26]} 22. Bg3 {[%clk 00:38:40]} {[%emt 00:00:12]} Ne4
{[%clk 00:20:00]} {[%emt 00:01:11]} 23. Rc2 {[%clk 00:36:26]} {[%emt 00:02:43]}
Nxg3 {[%clk 00:15:35]} {[%emt 00:04:55]} 24. hxg3 {[%clk 00:36:45]} {[%emt
00:00:11]} h5 {[%clk 00:15:18]} {[%emt 00:00:48]} 25. Rac1 {[%clk 00:36:12]}
{[%emt 00:01:03]} Rc8 {[%clk 00:13:17]} {[%emt 00:02:32]} 26. Qxh5 {[%clk
00:35:25]} {[%emt 00:01:17]} c5 {[%clk 00:13:35]} {[%emt 00:00:12]} 27. b3
{[%clk 00:32:37]} {[%emt 00:03:18]} Qb8 {[%clk 00:13:42]} {[%emt 00:00:23]} 28.
Qg4 {[%clk 00:30:05]} {[%emt 00:03:01]} Rh8 {[%clk 00:12:12]} {[%emt 00:02:01]}
29. Qa4+ {[%clk 00:29:11]} {[%emt 00:01:24]} Kd8 {[%clk 00:12:18]} {[%emt
00:00:24]} 30. Qc6 {[%clk 00:27:06]} {[%emt 00:02:35]} Bd6 {[%clk 00:12:38]}
{[%emt 00:00:11]} 31. e4 {[%clk 00:26:12]} {[%emt 00:01:24]} Rh6 {[%clk
00:09:09]} {[%emt 00:03:59]} 32. exd5 {[%clk 00:20:57]} {[%emt 00:05:45]} Bxg3
{[%clk 00:09:32]} {[%emt 00:00:08]} 33. dxe6 {[%clk 00:19:51]} {[%emt
00:01:35]} Bxf2+ {[%clk 00:09:31]} {[%emt 00:00:31]} 34. Rxf2 {[%clk 00:19:56]}
{[%emt 00:00:25]} 1-0

[Event "SS Manhem Chess Week 2019 Goteborg Open"]
[Site "Molnlycke kulturhus, Biblioteksgatan 2, Molnlycke, Sweden"]
[Date "2019.08.18"]
[Round "8.7"]
[White "Petersson, Baldur Teodor"]
[Black "Hector, Jonny"]
[Result "0-1"]
[TimeControl "15 minutes + 5 seconds per move from move one (Round 1 - 4) / 90 minutes + 30 seconds per move from move one (Round 5 - 8)"]
[WhiteTitle "CM"]
[BlackTitle "GM"]
[WhiteFideId "2309157"]
[BlackFideId "1700090"]
[WhiteElo "2255"]
[BlackElo "2493"]

1. e4 {[%clk 01:30:54]} {[%emt 00:00:03]} e5 {[%clk 01:30:55]} {[%emt
00:00:05]} 2. Nf3 {[%clk 01:31:18]} {[%emt 00:00:08]} Nc6 {[%clk 01:31:18]}
{[%emt 00:00:07]} 3. Bc4 {[%clk 01:31:43]} {[%emt 00:00:05]} Nf6 {[%clk
01:31:40]} {[%emt 00:00:07]} 4. d4 {[%clk 01:32:08]} {[%emt 00:00:06]} exd4
{[%clk 01:32:03]} {[%emt 00:00:07]} 5. O-O {[%clk 01:32:32]} {[%emt 00:00:06]}
Nxe4 {[%clk 01:32:12]} {[%emt 00:00:20]} 6. Re1 {[%clk 01:32:54]} {[%emt
00:00:08]} d5 {[%clk 01:32:36]} {[%emt 00:00:05]} 7. Bxd5 {[%clk 01:33:18]}
{[%emt 00:00:07]} Qxd5 {[%clk 01:32:57]} {[%emt 00:00:08]} 8. Nc3 {[%clk
01:33:43]} {[%emt 00:00:06]} Qd7 {[%clk 01:31:54]} {[%emt 00:01:31]} 9. Nxe4
{[%clk 01:33:09]} {[%emt 00:01:06]} Be7 {[%clk 01:32:06]} {[%emt 00:00:17]} 10.
Bg5 {[%clk 01:33:21]} {[%emt 00:00:19]} O-O {[%clk 01:32:20]} {[%emt 00:00:15]}
11. Bxe7 {[%clk 01:33:36]} {[%emt 00:00:16]} Qxe7 {[%clk 01:32:44]} {[%emt
00:00:05]} 12. Nxd4 {[%clk 01:33:37]} {[%emt 00:00:30]} Bd7 {[%clk 01:32:49]}
{[%emt 00:00:25]} 13. Nb3 {[%clk 01:29:57]} {[%emt 00:04:12]} Rae8 {[%clk
01:30:24]} {[%emt 00:02:54]} 14. Re3 {[%clk 01:17:44]} {[%emt 00:12:43]} Qd8
{[%clk 01:23:31]} {[%emt 00:07:22]} 15. Qe2 {[%clk 01:13:47]} {[%emt 00:04:27]}
b6 {[%clk 01:16:25]} {[%emt 00:07:36]} 16. Rd1 {[%clk 01:09:02]} {[%emt
00:05:15]} Re6 {[%clk 01:09:55]} {[%emt 00:07:00]} 17. Red3 {[%clk 00:41:05]}
{[%emt 00:29:49]} Ne5 {[%clk 01:03:05]} {[%emt 00:05:59]} 18. Rd5 {[%clk
00:38:23]} {[%emt 00:03:12]} Qe8 {[%clk 01:01:44]} {[%emt 00:01:51]} 19. Nd4
{[%clk 00:33:58]} {[%emt 00:04:56]} Re7 {[%clk 00:58:53]} {[%emt 00:03:19]} 20.
f3 {[%clk 00:26:21]} {[%emt 00:08:08]} Bc8 {[%clk 00:57:52]} {[%emt 00:01:31]}
21. Qd2 {[%clk 00:21:52]} {[%emt 00:04:59]} f5 {[%clk 00:50:31]} {[%emt
00:07:49]} 22. Ng5 {[%clk 00:19:10]} {[%emt 00:03:12]} c6 {[%clk 00:49:02]}
{[%emt 00:01:59]} 23. Rxe5 {[%clk 00:15:38]} {[%emt 00:04:02]} Rxe5 {[%clk
00:49:13]} {[%emt 00:00:18]} 24. Qc3 {[%clk 00:13:32]} {[%emt 00:02:36]} Bd7
{[%clk 00:45:51]} {[%emt 00:03:52]} 25. f4 {[%clk 00:13:13]} {[%emt 00:00:49]}
Re3 {[%clk 00:42:55]} {[%emt 00:03:25]} 26. Qc4+ {[%clk 00:11:51]} {[%emt
00:01:53]} Kh8 {[%clk 00:43:20]} {[%emt 00:00:04]} 27. Ndf3 {[%clk 00:07:55]}
{[%emt 00:04:27]} h6 {[%clk 00:42:42]} {[%emt 00:01:08]} 28. Nh3 {[%clk
00:07:54]} {[%emt 00:00:31]} Be6 {[%clk 00:41:57]} {[%emt 00:01:14]} 29. Qd4
{[%clk 00:07:14]} {[%emt 00:01:10]} Bd5 {[%clk 00:40:19]} {[%emt 00:02:08]} 0-1

[Event "SS Manhem Chess Week 2019 Goteborg Open"]
[Site "Molnlycke kulturhus, Biblioteksgatan 2, Molnlycke, Sweden"]
[Date "2019.08.18"]
[Round "8.8"]
[White "Arnelind, Mikael"]
[Black "Malmstig, Erik"]
[Result "1-0"]
[TimeControl "15 minutes + 5 seconds per move from move one (Round 1 - 4) / 90 minutes + 30 seconds per move from move one (Round 5 - 8)"]
[BlackTitle "FM"]
[WhiteFideId "1704290"]
[BlackFideId "1702866"]
[WhiteElo "2187"]
[BlackElo "2335"]

1. d4 {[%clk 01:30:56]} {[%emt 00:00:04]} Nf6 {[%clk 01:30:50]} {[%emt
00:00:11]} 2. c4 {[%clk 01:31:20]} {[%emt 00:00:05]} c5 {[%clk 01:31:17]}
{[%emt 00:00:04]} 3. d5 {[%clk 01:31:44]} {[%emt 00:00:05]} b5 {[%clk
01:31:43]} {[%emt 00:00:04]} 4. cxb5 {[%clk 01:32:07]} {[%emt 00:00:07]} a6
{[%clk 01:32:08]} {[%emt 00:00:05]} 5. b6 {[%clk 01:32:28]} {[%emt 00:00:09]}
d6 {[%clk 01:32:22]} {[%emt 00:00:16]} 6. Nc3 {[%clk 01:32:35]} {[%emt
00:00:23]} Qxb6 {[%clk 01:32:43]} {[%emt 00:00:10]} 7. Nf3 {[%clk 01:32:29]}
{[%emt 00:00:35]} g6 {[%clk 01:33:02]} {[%emt 00:00:10]} 8. Nd2 {[%clk
01:31:27]} {[%emt 00:01:32]} Bg7 {[%clk 01:32:59]} {[%emt 00:00:32]} 9. e4
{[%clk 01:30:56]} {[%emt 00:01:01]} O-O {[%clk 01:33:17]} {[%emt 00:00:12]} 10.
Be2 {[%clk 01:26:50]} {[%emt 00:04:37]} Nbd7 {[%clk 01:32:20]} {[%emt
00:01:24]} 11. Nc4 {[%clk 01:24:02]} {[%emt 00:03:20]} Qc7 {[%clk 01:32:18]}
{[%emt 00:00:33]} 12. O-O {[%clk 01:19:19]} {[%emt 00:05:12]} Rb8 {[%clk
01:30:49]} {[%emt 00:02:00]} 13. h3 {[%clk 01:16:55]} {[%emt 00:02:53]} Ne8
{[%clk 01:23:54]} {[%emt 00:07:25]} 14. Qc2 {[%clk 01:12:10]} {[%emt 00:05:16]}
Bd4 {[%clk 01:20:36]} {[%emt 00:03:46]} 15. Kh1 {[%clk 01:07:54]} {[%emt
00:04:47]} Ng7 {[%clk 01:20:07]} {[%emt 00:00:59]} 16. Bg5 {[%clk 00:57:52]}
{[%emt 00:10:32]} Ne5 {[%clk 01:18:00]} {[%emt 00:02:38]} 17. Nxe5 {[%clk
00:46:58]} {[%emt 00:11:24]} dxe5 {[%clk 01:15:41]} {[%emt 00:02:49]} 18. Bc4
{[%clk 00:44:58]} {[%emt 00:02:30]} Rb4 {[%clk 01:11:07]} {[%emt 00:05:03]} 19.
b3 {[%clk 00:43:17]} {[%emt 00:02:12]} Qd6 {[%clk 01:07:15]} {[%emt 00:04:22]}
20. Rad1 {[%clk 00:41:45]} {[%emt 00:02:02]} Nh5 {[%clk 01:05:30]} {[%emt
00:02:12]} 21. Ne2 {[%clk 00:39:45]} {[%emt 00:02:33]} Nf4 {[%clk 01:00:51]}
{[%emt 00:05:09]} 22. Bxf4 {[%clk 00:36:01]} {[%emt 00:04:15]} exf4 {[%clk
01:01:00]} {[%emt 00:00:22]} 23. Nxd4 {[%clk 00:36:15]} {[%emt 00:00:16]} cxd4
{[%clk 01:01:21]} {[%emt 00:00:08]} 24. Rxd4 {[%clk 00:31:33]} {[%emt
00:05:12]} e5 {[%clk 00:55:48]} {[%emt 00:06:02]} 25. Rd3 {[%clk 00:30:18]}
{[%emt 00:01:45]} f5 {[%clk 00:55:36]} {[%emt 00:00:42]} 26. f3 {[%clk
00:29:28]} {[%emt 00:01:20]} fxe4 {[%clk 00:55:13]} {[%emt 00:00:53]} 27. fxe4
{[%clk 00:29:54]} {[%emt 00:00:04]} Bd7 {[%clk 00:52:08]} {[%emt 00:03:36]} 28.
Rc3 {[%clk 00:28:52]} {[%emt 00:01:33]} Kg7 {[%clk 00:49:53]} {[%emt 00:02:45]}
29. Be2 {[%clk 00:27:57]} {[%emt 00:01:24]} h5 {[%clk 00:49:18]} {[%emt
00:01:05]} 30. Rc1 {[%clk 00:24:20]} {[%emt 00:04:08]} Rf7 {[%clk 00:47:07]}
{[%emt 00:02:41]} 31. Rc7 {[%clk 00:21:33]} {[%emt 00:03:17]} Rd4 {[%clk
00:46:12]} {[%emt 00:01:24]} 32. Bf3 {[%clk 00:20:14]} {[%emt 00:01:50]} Qf6
{[%clk 00:33:29]} {[%emt 00:13:13]} 33. Qf2 {[%clk 00:16:23]} {[%emt 00:04:20]}
Kh6 {[%clk 00:29:31]} {[%emt 00:04:28]} 34. Qe1 {[%clk 00:14:49]} {[%emt
00:02:03]} Bb5 {[%clk 00:25:43]} {[%emt 00:04:19]} 35. Rxf7 {[%clk 00:12:54]}
{[%emt 00:02:26]} Qxf7 {[%clk 00:25:56]} {[%emt 00:00:17]} 36. Qa5 {[%clk
00:12:15]} {[%emt 00:01:09]} Qf6 {[%clk 00:22:06]} {[%emt 00:04:20]} 37. Qe1
{[%clk 00:07:08]} {[%emt 00:05:37]} Qd8 {[%clk 00:18:31]} {[%emt 00:04:05]} 38.
Rd1 {[%clk 00:05:07]} {[%emt 00:02:32]} Bd3 {[%clk 00:17:23]} {[%emt 00:01:37]}
39. Qc3 {[%clk 00:04:35]} {[%emt 00:01:03]} Qh4 {[%clk 00:15:45]} {[%emt
00:02:06]} 40. Rxd3 {[%clk 00:04:36]} {[%emt 00:00:31]} Qf2 {[%clk 00:14:46]}
{[%emt 00:01:28]} 41. Rxd4 {[%clk 00:04:12]} {[%emt 00:00:55]} exd4 {[%clk
00:15:05]} {[%emt 00:00:11]} 42. Qc1 {[%clk 00:03:57]} {[%emt 00:00:44]} Kg5
{[%clk 00:15:05]} {[%emt 00:00:30]} 43. d6 {[%clk 00:03:49]} {[%emt 00:00:38]}
d3 {[%clk 00:15:07]} {[%emt 00:00:27]} 44. d7 {[%clk 00:03:59]} {[%emt
00:00:20]} Qd4 {[%clk 00:14:53]} {[%emt 00:00:44]} 45. Qc7 {[%clk 00:03:31]}
{[%emt 00:00:59]} 1-0

[Event "SS Manhem Chess Week 2019 Goteborg Open"]
[Site "Molnlycke kulturhus, Biblioteksgatan 2, Molnlycke, Sweden"]
[Date "2019.08.18"]
[Round "8.9"]
[White "Nilsson, Joakim"]
[Black "Troberg Eskola, Love"]
[Result "1/2-1/2"]
[TimeControl "15 minutes + 5 seconds per move from move one (Round 1 - 4) / 90 minutes + 30 seconds per move from move one (Round 5 - 8)"]
[WhiteTitle "FM"]
[WhiteFideId "1723383"]
[BlackFideId "1724185"]
[WhiteElo "2319"]
[BlackElo "2134"]

1. d4 {[%clk 01:30:57]} {[%emt 00:00:02]} d5 {[%clk 01:30:55]} {[%emt
00:00:05]} 2. Nf3 {[%clk 01:31:23]} {[%emt 00:00:05]} Nf6 {[%clk 01:31:19]}
{[%emt 00:00:06]} 3. g3 {[%clk 01:31:44]} {[%emt 00:00:09]} g6 {[%clk
01:31:17]} {[%emt 00:00:31]} 4. Bg2 {[%clk 01:32:08]} {[%emt 00:00:06]} Bg7
{[%clk 01:31:42]} {[%emt 00:00:05]} 5. O-O {[%clk 01:32:34]} {[%emt 00:00:04]}
O-O {[%clk 01:32:07]} {[%emt 00:00:05]} 6. c4 {[%clk 01:32:54]} {[%emt
00:00:10]} c6 {[%clk 01:31:23]} {[%emt 00:01:13]} 7. cxd5 {[%clk 01:31:23]}
{[%emt 00:02:01]} cxd5 {[%clk 01:31:47]} {[%emt 00:00:06]} 8. Ne5 {[%clk
01:30:53]} {[%emt 00:01:00]} e6 {[%clk 01:30:20]} {[%emt 00:01:57]} 9. Nc3
{[%clk 01:30:21]} {[%emt 00:01:02]} Nfd7 {[%clk 01:30:11]} {[%emt 00:00:38]} 10.
Nxd7 {[%clk 01:29:10]} {[%emt 00:01:41]} Qxd7 {[%clk 01:27:52]} {[%emt
00:02:49]} 11. b3 {[%clk 01:28:47]} {[%emt 00:00:53]} Nc6 {[%clk 01:28:07]}
{[%emt 00:00:15]} 12. e3 {[%clk 01:29:05]} {[%emt 00:00:12]} b6 {[%clk
01:28:02]} {[%emt 00:00:35]} 13. Ba3 {[%clk 01:28:17]} {[%emt 00:01:17]} Rd8
{[%clk 01:25:50]} {[%emt 00:02:42]} 14. Qe2 {[%clk 01:27:45]} {[%emt 00:01:02]}
a5 {[%clk 01:23:18]} {[%emt 00:03:02]} 15. Rfc1 {[%clk 01:25:37]} {[%emt
00:02:37]} Ba6 {[%clk 01:23:27]} {[%emt 00:00:22]} 16. Qd1 {[%clk 01:23:29]}
{[%emt 00:02:37]} Rdc8 {[%clk 01:09:46]} {[%emt 00:14:11]} 17. Na4 {[%clk
01:19:22]} {[%emt 00:04:38]} Qb7 {[%clk 01:04:41]} {[%emt 00:05:36]} 18. Qd2
{[%clk 01:18:00]} {[%emt 00:01:52]} Na7 {[%clk 01:02:13]} {[%emt 00:02:58]} 19.
Rxc8+ {[%clk 01:06:24]} {[%emt 00:12:06]} Rxc8 {[%clk 01:02:32]} {[%emt
00:00:12]} 20. Rc1 {[%clk 01:06:47]} {[%emt 00:00:07]} Rxc1+ {[%clk 01:01:47]}
{[%emt 00:01:14]} 21. Qxc1 {[%clk 01:06:56]} {[%emt 00:00:21]} Bf6 {[%clk
01:01:41]} {[%emt 00:00:36]} 22. h4 {[%clk 01:05:47]} {[%emt 00:01:39]} h5
{[%clk 01:00:34]} {[%emt 00:01:37]} 23. Bd6 {[%clk 00:58:30]} {[%emt 00:07:47]}
Bd8 {[%clk 00:58:53]} {[%emt 00:03:23]} 24. e4 {[%clk 00:17:44]} {[%emt
00:40:05]} Nc8 {[%clk 00:52:12]} {[%emt 00:07:10]} 25. Be5 {[%clk 00:15:45]}
{[%emt 00:02:29]} f6 {[%clk 00:51:32]} {[%emt 00:01:10]} 26. Qh6 {[%clk
00:12:56]} {[%emt 00:03:19]} Qg7 {[%clk 00:24:53]} {[%emt 00:27:09]} 27. Qxg7+
{[%clk 00:12:40]} {[%emt 00:00:46]} Kxg7 {[%clk 00:25:19]} {[%emt 00:00:04]} 28.
Bf4 {[%clk 00:12:56]} {[%emt 00:00:14]} dxe4 {[%clk 00:21:46]} {[%emt
00:04:03]} 29. Bxe4 {[%clk 00:13:14]} {[%emt 00:00:12]} Ne7 {[%clk 00:20:20]}
{[%emt 00:01:56]} 30. Bb8 {[%clk 00:06:25]} {[%emt 00:07:18]} Bb5 {[%clk
00:19:37]} {[%emt 00:01:14]} 31. Nc3 {[%clk 00:05:19]} {[%emt 00:01:36]} Bc6
{[%clk 00:19:40]} {[%emt 00:00:26]} 32. Bd3 {[%clk 00:04:50]} {[%emt 00:00:59]}
Bf3 {[%clk 00:14:56]} {[%emt 00:05:14]} 33. Bc4 {[%clk 00:04:21]} {[%emt
00:00:59]} Nc6 {[%clk 00:14:37]} {[%emt 00:00:49]} 34. Bf4 {[%clk 00:03:36]}
{[%emt 00:01:15]} Nxd4 {[%clk 00:14:56]} {[%emt 00:00:11]} 35. Be3 {[%clk
00:03:47]} {[%emt 00:00:19]} Nf5 {[%clk 00:12:59]} {[%emt 00:02:26]} 36. Bxe6
{[%clk 00:03:49]} {[%emt 00:00:29]} 1/2-1/2

[Event "SS Manhem Chess Week 2019 Goteborg Open"]
[Site "Molnlycke kulturhus, Biblioteksgatan 2, Molnlycke, Sweden"]
[Date "2019.08.18"]
[Round "8.10"]
[White "Svensson, Leif"]
[Black "Andersson, Christian"]
[Result "1-0"]
[TimeControl "15 minutes + 5 seconds per move from move one (Round 1 - 4) / 90 minutes + 30 seconds per move from move one (Round 5 - 8)"]
[WhiteFideId "1702459"]
[BlackFideId "1724789"]
[WhiteElo "2027"]
[BlackElo "1794"]

1. d4 {[%clk 01:30:51]} {[%emt 00:01:45]} Nf6 {[%clk 01:30:55]} {[%emt
00:00:16]} 2. Nc3 {[%clk 01:31:14]} {[%emt 00:00:08]} d5 {[%clk 01:30:13]}
{[%emt 00:01:11]} 3. Bg5 {[%clk 01:31:36]} {[%emt 00:00:08]} c5 {[%clk
01:29:53]} {[%emt 00:00:49]} 4. Bxf6 {[%clk 01:31:46]} {[%emt 00:00:20]} gxf6
{[%clk 01:30:03]} {[%emt 00:00:18]} 5. e3 {[%clk 01:32:09]} {[%emt 00:00:09]}
cxd4 {[%clk 01:28:50]} {[%emt 00:01:42]} 6. exd4 {[%clk 01:32:24]} {[%emt
00:00:16]} Nc6 {[%clk 01:28:24]} {[%emt 00:00:55]} 7. Qh5 {[%clk 01:32:34]}
{[%emt 00:00:21]} e6 {[%clk 01:28:05]} {[%emt 00:00:49]} 8. Bb5 {[%clk
01:32:07]} {[%emt 00:00:59]} Bd7 {[%clk 01:22:43]} {[%emt 00:05:47]} 9. Nge2
{[%clk 01:32:25]} {[%emt 00:00:15]} Bd6 {[%clk 01:18:46]} {[%emt 00:04:27]} 10.
O-O-O {[%clk 01:27:48]} {[%emt 00:05:08]} a6 {[%clk 01:14:19]} {[%emt
00:04:56]} 11. Bxc6 {[%clk 01:28:05]} {[%emt 00:00:14]} Bxc6 {[%clk 01:13:55]}
{[%emt 00:00:54]} 12. Rhe1 {[%clk 01:27:25]} {[%emt 00:01:10]} b5 {[%clk
01:07:19]} {[%emt 00:07:06]} 13. Ng3 {[%clk 01:26:18]} {[%emt 00:01:36]} b4
{[%clk 01:04:48]} {[%emt 00:03:00]} 14. Rxe6+ {[%clk 01:26:27]} {[%emt
00:00:22]} Kf8 {[%clk 01:04:33]} {[%emt 00:00:45]} 15. Qh6+ {[%clk 01:24:36]}
{[%emt 00:02:22]} Kg8 {[%clk 01:05:00]} {[%emt 00:00:02]} 16. Rxf6 {[%clk
01:22:14]} {[%emt 00:02:53]} Be7 {[%clk 01:01:14]} {[%emt 00:04:16]} 17. Nh5
{[%clk 01:21:43]} {[%emt 00:01:01]} 1-0